fUST/lending_fUST_20240302
["ID","MTS","AMOUNT","RATE_DAILY","PERIOD"]
[316071829,1709346639446,-153.0,0.00023178,2]
[316071830,1709346639455,-200.7312975,0.00023178,2]
[316071833,1709346639465,-153.0,0.00023178,2]
[316071835,1709346639476,-200.7312975,0.00023178,2]
[316071837,1709346639486,-153.0,0.00023178,2]
[316071838,1709346639495,-200.7312975,0.00023178,2]
[316071840,1709346639507,-153.0,0.00023178,2]
[316071842,1709346639516,-200.7312975,0.00023178,2]
[316071844,1709346639528,-153.0,0.00023178,2]
[316071846,1709346639537,-200.7312975,0.00023178,2]
[316071848,1709346639547,-372.1502476,0.00023178,2]
[316071850,1709346639556,-405.0908022,0.00023178,2]
[316071852,1709346639566,-511.66,0.00023202,2]
[316071854,1709346639576,-500.0,0.00023202,2]
[316071857,1709346639586,-1591.42,0.00023202,2]
[316071860,1709346639595,-655.01,0.00023202,2]
[316071863,1709346639603,-500.0,0.00023202,2]
[316071865,1709346639612,-654.15,0.00023202,2]
[316071867,1709346639621,-1000.0,0.00023203,5]
[316071869,1709346639630,-500.0,0.0002335,2]
[316071871,1709346639639,-2516.362073,0.00023351,2]
[316071873,1709346639648,-500.0,0.00023393,2]
[316071875,1709346639657,-500.0,0.00023394,2]
[316071877,1709346639667,-500.0,0.00023394,2]
[316071879,1709346639676,-500.0,0.00023394,2]
[316071881,1709346639686,-5000.0,0.00023415,5]
[316071883,1709346639695,-2551.05,0.00023482,3]
[316071885,1709346639704,-1785.07537976,0.00023519,2]
[316071888,1709346639713,-2516.362073,0.00023633,2]
[316071890,1709346639724,-500.0,0.00023713,2]
[316071891,1709346639733,-245.42,0.00023713,2]
[316071894,1709346639743,-500.0,0.00023713,2]
[316071895,1709346639752,-500.0,0.00023713,2]
[316071897,1709346639761,-500.0,0.00023714,2]
[316071900,1709346639770,-516.39862514,0.00023714,2]
[316071901,1709346639780,-1000.0,0.00023777,2]
[316071903,1709346639789,-1000.0,0.00023778,2]
[316071906,1709346639798,-578.40279666,0.00023782,2]
[316071907,1709346639807,-1000.0,0.00023795,2]
[316071910,1709346639817,-500.0,0.00023799,2]
[316071911,1709346639826,-500.0,0.00023799,2]
[316071913,1709346639835,-500.0,0.00023799,2]
[316071915,1709346639845,-500.0,0.00023799,2]
[316071917,1709346639854,-500.0,0.00023799,2]
[316071919,1709346639863,-804.92987228,0.00023799,2]
[316071921,1709346639872,-1829.14,0.00023799,2]
[316071923,1709346639881,-639.85,0.00023799,2]
[316071925,1709346639891,-567.15,0.00023799,2]
[316071927,1709346639900,-511.66,0.00023799,2]
[316071929,1709346639909,-509.6697368,0.00023799,2]
[316071931,1709346639918,-1591.42,0.00023799,2]
[316071933,1709346639927,-500.0,0.00023799,2]
[316071935,1709346639936,-655.01,0.00023799,2]
[316071938,1709346639945,-500.0,0.00023799,2]
[316071940,1709346639954,-500.0,0.00023799,2]
[316071942,1709346639964,-654.15,0.00023799,2]
[316071943,1709346639974,-6000.0,0.000238,2]
[316071946,1709346639984,-6000.0,0.000238,2]
[316071947,1709346639993,-6000.0,0.000238,2]
[316071949,1709346640002,-6000.0,0.000238,2]
[316071951,1709346640011,-579.619802,0.000238,2]
[316071953,1709346640020,-3378.37891865,0.000238,7]
[316071955,1709346640029,-804.92987227,0.0002381,2]
[316071958,1709346640039,-804.92987227,0.00023821,2]
[316071959,1709346640047,-1000.0,0.00023826,2]
[316071961,1709346640057,-1000.0,0.00023831,2]
[316071963,1709346640066,-804.92987227,0.00023833,2]
[316071965,1709346640075,-804.92987227,0.00023844,2]
[316071968,1709346640085,-804.92987227,0.00023855,2]
[316071970,1709346640095,-804.92987227,0.00023866,2]
[316071972,1709346640104,-1005.85648721,0.00023872,2]
[316071973,1709346640113,-1000.0,0.00023876,2]
[316071976,1709346640122,-804.92987227,0.00023878,2]
[316071978,1709346640131,-500.0,0.00023882,2]
[316071979,1709346640140,-500.0,0.00023883,2]
[316071980,1709346640149,-500.0,0.00023883,2]
[316071981,1709346640158,-804.92987227,0.00023889,2]
[316071982,1709346640168,-269.95003094,0.00023896,2]
[316071983,1709346640177,-500.0,0.00023896,2]
[316071984,1709346640187,-1057.38342712,0.00023897,3]
[316071985,1709346640196,-50000.0,0.00023897,5]
[316071986,1709346640207,-500.0,0.00023898,2]
[316071987,1709346640217,-157.73865583,0.000239,2]
[316071988,1709346640232,-804.92987227,0.000239,2]
[316071989,1709346640242,-3600.05712,0.000239,2]
[316071990,1709346640251,-1000.0,0.00023927,2]
[316071991,1709346640261,-234.6105,0.00023976,2]
[316071992,1709346640270,-300.129626,0.00023984,2]
[316071993,1709346640280,-1000.0,0.00023992,2]
[316071994,1709346640289,-500.0,0.00023995,2]
[316071995,1709346640299,-500.0,0.00023995,2]
[316071996,1709346640308,-500.0,0.00023995,2]
[316071997,1709346640317,-511.66,0.00023996,2]
[316071998,1709346640327,-1591.42,0.00023996,2]
[316071999,1709346640337,-655.01,0.00023996,2]
[316072000,1709346640347,-500.0,0.00023996,2]
[316072001,1709346640357,-165.68781607,0.00023996,2]
[316072002,1709346640367,-654.15,0.00023996,2]
[316072004,1709346640377,-342.7083715,0.00023997,2]
[316072005,1709346640387,-500.0,0.00023997,2]
[316072006,1709346640396,-500.0,0.00023997,2]
[316072008,1709346640405,-500.0,0.00023997,2]
[316072010,1709346640414,-376.59,0.00023997,2]
[316072012,1709346640423,-435.77,0.00023997,2]
[316072014,1709346640432,-435.77,0.00023997,2]
[316072016,1709346640441,-435.77,0.00023997,2]
[316072026,1709346640519,-435.77,0.00023997,2]
[316072028,1709346640538,-435.77,0.00023997,2]
[316072030,1709346640548,-511.66,0.00023997,2]
[316072032,1709346640557,-511.66,0.00023997,2]
[316072034,1709346640567,-1591.42,0.00023997,2]
[316072036,1709346640578,-1591.42,0.00023997,2]
[316072038,1709346640589,-655.01,0.00023997,2]
[316072040,1709346640599,-655.01,0.00023997,2]
[316072042,1709346640609,-500.0,0.00023997,2]
[316072044,1709346640619,-159.43147584,0.00023997,2]
[316072046,1709346640628,-654.15,0.00023997,2]
[316072048,1709346640637,-654.15,0.00023997,2]
[316072050,1709346640646,-256.94707593,0.00023998,2]
[316072052,1709346640656,-197.09312651,0.00023998,2]
[316072054,1709346640665,-15110.3187567,0.00023998,2]
[316072056,1709346640674,-3191.15687848,0.00023998,2]
[316072058,1709346640684,-558.92126396,0.00023998,2]
[316072060,1709346640693,-8382.93769081,0.00023998,2]
[316072062,1709346640703,-20914.02108209,0.00023998,2]
[316072064,1709346640712,-625.0038189,0.00023998,2]
[316072066,1709346640725,-401.83058044,0.00023998,2]
[316072068,1709346640735,-611.49646159,0.00023998,2]
[316072070,1709346640746,-400.0,0.00023998,2]
[316072072,1709346640755,-155.0558201,0.00023998,2]
[316072074,1709346640765,-180.09180806,0.00023998,2]
[316072076,1709346640776,-180.00477285,0.00023998,2]
[316072078,1709346640786,-182.21287446,0.00023998,2]
[316072080,1709346640796,-239.3417885,0.00023998,2]
[316072082,1709346640806,-160.68669372,0.00023998,2]
[316072084,1709346640815,-416.04811495,0.00023998,2]
[316072086,1709346640824,-429.83650399,0.00023998,2]
[316072088,1709346640833,-2117.88476154,0.00023998,2]
[316072090,1709346640842,-8030.21167154,0.00023998,2]
[316072092,1709346640851,-539.83101076,0.00023998,2]
[316072094,1709346640861,-929.85495771,0.00023998,2]
[316072095,1709346640870,-179.46274368,0.00023998,2]
[316072098,1709346640880,-274.8811973,0.00023998,2]
[316072099,1709346640889,-500.0,0.00023998,2]
[316072101,1709346640899,-156.15850147,0.00023998,2]
[316072103,1709346640908,-1156.31549652,0.00023998,2]
[316072106,1709346640918,-507.38264362,0.00023998,2]
[316072108,1709346640927,-500.0,0.00023998,2]
[316072110,1709346640936,-500.0,0.00023998,2]
[316072111,1709346640946,-474.55024548,0.00023998,2]
[316072113,1709346640955,-4402.6,0.00023998,2]
[316072115,1709346640964,-4402.6,0.00023998,2]
[316072117,1709346640975,-4402.6,0.00023998,2]
[316072119,1709346640984,-1829.14,0.00023998,2]
[316072121,1709346640994,-639.85,0.00023998,2]
[316072123,1709346641004,-567.15,0.00023998,2]
[316072125,1709346641013,-511.66,0.00023998,2]
[316072127,1709346641023,-511.66,0.00023998,2]
[316072129,1709346641032,-1591.42,0.00023998,2]
[316072131,1709346641042,-1591.42,0.00023998,2]
[316072133,1709346641050,-500.0,0.00023998,2]
[316072136,1709346641059,-655.01,0.00023998,2]
[316072137,1709346641069,-655.01,0.00023998,2]
[316072139,1709346641078,-654.15,0.00023998,2]
[316072142,1709346641089,-654.15,0.00023998,2]
[316072144,1709346641098,-500.0,0.00023999,2]
[316072145,1709346641107,-500.0,0.00023999,2]
[316072148,1709346641116,-445.30776661,0.00023999,2]
[316072150,1709346641125,-500.0,0.00023999,2]
[316072152,1709346641134,-500.0,0.00023999,2]
[316072154,1709346641143,-500.0,0.00023999,2]
[316072156,1709346641152,-445.13919078,0.00023999,2]
[316072158,1709346641161,-4402.6,0.00023999,2]
[316072160,1709346641170,-4402.6,0.00023999,2]
[316072161,1709346641179,-4402.6,0.00023999,2]
[316072164,1709346641188,-4402.6,0.00023999,2]
[316072166,1709346641198,-4402.6,0.00023999,2]
[316072167,1709346641207,-4402.6,0.00023999,2]
[316072169,1709346641215,-4402.6,0.00023999,2]
[316072172,1709346641227,-4402.6,0.00023999,2]
[316072173,1709346641236,-4402.6,0.00023999,2]
[316072176,1709346641245,-4402.6,0.00023999,2]
[316072177,1709346641254,-4402.6,0.00023999,2]
[316072179,1709346641263,-4402.6,0.00023999,2]
[316072181,1709346641272,-4402.6,0.00023999,2]
[316072183,1709346641281,-4402.6,0.00023999,2]
[316072185,1709346641292,-4402.6,0.00023999,2]
[316072188,1709346641302,-4402.6,0.00023999,2]
[316072189,1709346641311,-4402.6,0.00023999,2]
[316072191,1709346641320,-4402.6,0.00023999,2]
[316072193,1709346641329,-4402.6,0.00023999,2]
[316072195,1709346641339,-4402.6,0.00023999,2]
[316072197,1709346641348,-4402.76148993,0.00023999,2]
[316072199,1709346641357,-1829.14,0.00023999,2]
[316072201,1709346641366,-1829.14,0.00023999,2]
[316072203,1709346641375,-1829.14,0.00023999,2]
[316072205,1709346641384,-1829.14,0.00023999,2]
[316072207,1709346641394,-1829.14,0.00023999,2]
[316072209,1709346641404,-40.84504676,0.00023999,2]
[316072451,1709346643568,-1290.0,0.00023999,2]
[316072454,1709346643580,-498.29495324,0.00023999,2]
[316072458,1709346643590,-1829.14,0.00023999,2]
[316072461,1709346643600,-1829.14,0.00023999,2]
[316072463,1709346643609,-1360.1289889,0.00023999,2]
[316072546,1709346644640,-469.0110111,0.00023999,2]
[316072547,1709346644649,-1829.14,0.00023999,2]
[316072548,1709346644658,-1829.14,0.00023999,2]
[316072549,1709346644667,-1829.14,0.00023999,2]
[316072550,1709346644676,-256.76898892,0.00023999,2]
[316072551,1709346644686,-427.63664462,0.00023999,2]
[316078601,1709347441601,853.4989297,0.00018421,2]
[316078602,1709347490025,246.18928,0.00018385,2]
[316078604,1709347719835,278.1432234,0.00017997,2]
[316078654,1709347838333,-155.07133281,0.00018895,2]
[316078656,1709347838342,-250.0,0.00018896,2]
[316078658,1709347838352,-101.41043051,0.000189,2]
[316078663,1709347838393,-703.21848589,0.000189,2]
[316078666,1709347838403,-20424.5805837,0.00018926,2]
[316078668,1709347838413,-184.00060868,0.00019,2]
[316078670,1709347838423,-177.240497,0.00019178,2]
[316078672,1709347838432,-500.0,0.00020547,2]
[316078674,1709347838441,-500.0,0.00020547,2]
[316078676,1709347838450,-500.0,0.00020547,2]
[316078678,1709347838460,-500.0,0.00020547,2]
[316078680,1709347838468,-500.0,0.00020547,2]
[316078682,1709347838477,-500.0,0.00020547,2]
[316078684,1709347838487,-500.0,0.00020547,2]
[316078686,1709347838497,-504.74038371,0.00020547,2]
[316078688,1709347838507,-502.09301613,0.00020547,2]
[316078690,1709347838518,-503.10483016,0.00020547,2]
[316078691,1709347838529,-500.0,0.00020547,2]
[316078694,1709347838542,-400.0,0.00020547,2]
[316078696,1709347838551,-500.0,0.00020547,2]
[316078698,1709347838561,-507.59555293,0.00020547,2]
[316078700,1709347838570,-505.85465343,0.00020547,2]
[316078702,1709347838579,-502.0914706,0.00020547,2]
[316078704,1709347838588,-502.2675815,0.00020547,2]
[316078706,1709347838597,-505.40187885,0.00020547,2]
[316078708,1709347838606,-500.0,0.00020547,2]
[316078710,1709347838614,-500.0,0.00020547,2]
[316078712,1709347838623,-505.85456976,0.00020547,2]
[316078714,1709347838632,-506.34996663,0.00020547,2]
[316078716,1709347838641,-500.0,0.00020547,2]
[316078718,1709347838650,-500.0,0.00020547,2]
[316078720,1709347838659,-600.96,0.00020547,2]
[316078722,1709347838668,-500.0,0.00020547,2]
[316078724,1709347838677,-419.10802241,0.00020547,2]
[316078726,1709347838686,-541.92,0.00020547,2]
[316078728,1709347838695,-500.0,0.00020547,2]
[316078730,1709347838704,-505.23421377,0.00020547,2]
[316078732,1709347838713,-501.60986542,0.00020547,2]
[316078734,1709347838722,-500.0,0.00020547,2]
[316078736,1709347838731,-504.16177551,0.00020547,2]
[316078738,1709347838740,-500.0,0.00020547,2]
[316078740,1709347838748,-5914.33,0.00020547,2]
[316078742,1709347838757,-500.0,0.00020547,2]
[316078744,1709347838766,-1665.65,0.00020547,2]
[316078746,1709347838775,-500.0,0.00020547,2]
[316078747,1709347838784,-500.0,0.00020547,2]
[316078750,1709347838794,-503.46659904,0.00020547,2]
[316078752,1709347838803,-503.84544124,0.00020547,2]
[316078754,1709347838813,-500.0,0.00020547,2]
[316078756,1709347838822,-500.0,0.00020547,2]
[316078758,1709347838833,-502.09462399,0.00020547,2]
[316078760,1709347838843,-511.89768432,0.00020547,2]
[316078762,1709347838852,-782.7,0.00020547,2]
[316078764,1709347838863,-500.0,0.00020547,2]
[316078766,1709347838872,-500.0,0.00020547,2]
[316078768,1709347838884,-500.0,0.00020547,2]
[316078770,1709347838893,-500.0,0.00020547,2]
[316078772,1709347838904,-8235.44669183,0.00020999,2]
[316078774,1709347838914,-495.009816,0.00021,9]
[316078776,1709347838924,-2364.93581005,0.00021,2]
[316078778,1709347838934,-503.09001085,0.00021078,2]
[316078780,1709347838943,-500.0,0.00021078,2]
[316078782,1709347838952,-500.0,0.00021078,2]
[316078784,1709347838962,-1554.9,0.00021078,2]
[316078786,1709347838971,-714.48,0.00021078,2]
[316078788,1709347838980,-578.64,0.00021078,2]
[316078790,1709347838989,-525.94,0.00021078,2]
[316078792,1709347838998,-500.0,0.00021079,2]
[316078794,1709347839007,-500.0,0.00021079,2]
[316078796,1709347839017,-500.0,0.00021079,2]
[316078798,1709347839027,-500.0,0.00021079,2]
[316078800,1709347839036,-500.0,0.00021079,2]
[316078802,1709347839046,-500.0,0.00021079,2]
[316078804,1709347839055,-500.0,0.00021079,2]
[316078806,1709347839065,-500.0,0.00021079,2]
[316078808,1709347839075,-500.0,0.00021079,2]
[316078810,1709347839084,-500.0,0.0002108,2]
[316078812,1709347839093,-500.0,0.0002108,2]
[316078814,1709347839102,-500.0,0.0002108,2]
[316078816,1709347839111,-500.0,0.0002108,2]
[316078818,1709347839121,-474.55024548,0.0002108,2]
[316078820,1709347839130,-500.0,0.0002108,2]
[316078822,1709347839139,-500.0,0.0002108,2]
[316078824,1709347839148,-500.0,0.0002108,2]
[316078826,1709347839156,-541.92,0.0002108,2]
[316078828,1709347839165,-500.0,0.0002108,2]
[316078830,1709347839175,-500.0,0.0002108,2]
[316078832,1709347839184,-5914.33,0.0002108,2]
[316078834,1709347839194,-600.96,0.00021162,2]
[316078836,1709347839204,-500.0,0.00021162,2]
[316078838,1709347839213,-1665.65,0.00021162,2]
[316078840,1709347839223,-782.7,0.00021162,2]
[316078842,1709347839231,-500.0,0.00021162,2]
[316078844,1709347839241,-2666.1748,0.00021195,7]
[316078846,1709347839250,-273.17688203,0.00021294,2]
[316078847,1709347839259,-176.78049526,0.00021322,2]
[316078848,1709347839267,-500.0,0.00021368,2]
[316078849,1709347839276,-514.31897555,0.00021368,2]
[316078850,1709347839285,-500.0,0.00021368,2]
[316078851,1709347839293,-500.0,0.00021368,2]
[316078852,1709347839302,-500.0,0.00021368,2]
[316078853,1709347839311,-500.0,0.00021368,2]
[316078854,1709347839319,-500.0,0.00021368,2]
[316078855,1709347839328,-541.92,0.00021368,2]
[316078856,1709347839337,-500.0,0.00021368,2]
[316078857,1709347839345,-500.0,0.00021368,2]
[316078858,1709347839354,-5914.33,0.00021368,2]
[316078859,1709347839363,-500.0,0.00021392,2]
[316078860,1709347839372,-600.96,0.00021392,2]
[316078861,1709347839381,-500.0,0.00021392,2]
[316078862,1709347839390,-500.0,0.00021392,2]
[316078863,1709347839399,-1665.65,0.00021392,2]
[316078864,1709347839408,-500.0,0.00021392,2]
[316078865,1709347839416,-500.0,0.00021392,2]
[316078866,1709347839425,-500.0,0.00021392,2]
[316078867,1709347839434,-500.0,0.00021392,2]
[316078868,1709347839442,-782.7,0.00021392,2]
[316078869,1709347839451,-500.0,0.00021392,2]
[316078870,1709347839460,-500.0,0.00021392,2]
[316078871,1709347839469,-500.0,0.00021393,2]
[316078872,1709347839478,-518.24614328,0.00021393,2]
[316078873,1709347839487,-500.0,0.00021393,2]
[316078874,1709347839495,-500.0,0.00021393,2]
[316078875,1709347839504,-159.43147584,0.00021393,2]
[316078877,1709347839513,-500.0,0.00021393,2]
[316078879,1709347839522,-500.0,0.00021393,2]
[316078881,1709347839532,-500.0,0.00021393,2]
[316078883,1709347839542,-500.0,0.00021393,2]
[316078885,1709347839551,-500.0,0.00021393,2]
[316078887,1709347839560,-500.0,0.00021393,2]
[316078889,1709347839569,-500.0,0.00021393,2]
[316078891,1709347839578,-471.02976881,0.00021393,2]
[316078893,1709347839587,-500.0,0.00021393,2]
[316078895,1709347839596,-500.0,0.00021393,2]
[316078897,1709347839605,-500.0,0.00021393,2]
[316078899,1709347839614,-541.92,0.00021393,2]
[316078901,1709347839623,-541.92,0.00021393,2]
[316078903,1709347839632,-541.92,0.00021393,2]
[316078905,1709347839641,-5914.33,0.00021393,2]
[316078907,1709347839650,-5914.33,0.00021393,2]
[316078909,1709347839659,-5914.33,0.00021393,2]
[316078911,1709347839668,-500.0,0.00021418,2]
[316078913,1709347839676,-600.96,0.00021418,2]
[316078915,1709347839686,-500.0,0.00021418,2]
[316078917,1709347839695,-613.10474758,0.00021418,2]
[316078919,1709347839704,-1665.65,0.00021418,2]
[316078922,1709347839713,-500.0,0.00021418,2]
[316078924,1709347839723,-500.0,0.00021418,2]
[316078926,1709347839732,-500.0,0.00021418,2]
[316078928,1709347839742,-782.7,0.00021418,2]
[316078930,1709347839751,-500.0,0.00021418,2]
[316078932,1709347839760,-40820.48297173,0.00021419,4]
[316078934,1709347839770,-177.240497,0.00021422,2]
[316078936,1709347839778,-4661.19648742,0.00021447,4]
[316078938,1709347839789,-89480.93671706,0.00021447,3]
[316078940,1709347839798,-17174.83275246,0.00021447,4]
[316078942,1709347839806,-500.0,0.0002146,2]
[316078944,1709347839816,-500.0,0.0002146,2]
[316078946,1709347839824,-500.0,0.0002146,2]
[316078948,1709347839833,-500.0,0.0002146,2]
[316078950,1709347839842,-500.0,0.0002146,2]
[316078952,1709347839851,-500.0,0.00021461,2]
[316078954,1709347839864,-500.0,0.00021461,2]
[316078956,1709347839873,-500.0,0.00021461,2]
[316078958,1709347839882,-541.92,0.00021461,2]
[316078960,1709347839891,-5914.33,0.00021461,2]
[316078962,1709347839900,-2588.72598807,0.00021494,2]
[316078964,1709347839910,-500.0,0.00021506,2]
[316078966,1709347839918,-6562.63186956,0.00021507,2]
[316078968,1709347839927,-1713.58355006,0.00021507,2]
[316078970,1709347839937,-272.4317423,0.00021507,2]
[316078972,1709347839946,-436.42769517,0.00021507,2]
[316078974,1709347839955,-21233.58178273,0.00021507,2]
[316078976,1709347839964,-184.56899189,0.00021507,2]
[316078978,1709347839973,-173.71502421,0.00021513,2]
[316078980,1709347839982,-624.34691052,0.00021868,2]
[316078982,1709347839991,-400.0,0.00021918,2]
[316078984,1709347840000,-157.1486779,0.00022354,2]
[316078986,1709347840009,-327.2251864,0.00022355,2]
[316078988,1709347840018,-153.0,0.00022356,2]
[316078990,1709347840028,-500.0,0.00022507,2]
[316078992,1709347840037,-500.0,0.00022507,2]
[316078994,1709347840046,-445.30776661,0.00022507,2]
[316078996,1709347840055,-500.0,0.00022507,2]
[316078998,1709347840064,-500.0,0.00022507,2]
[316079000,1709347840073,-1006.544829,0.00022507,2]
[316079002,1709347840083,-503.272415,0.00022507,2]
[316079004,1709347840092,-1006.544829,0.00022507,2]
[316079006,1709347840101,-1006.544829,0.00022789,2]
[316079008,1709347840110,-503.272415,0.00022789,2]
[316079010,1709347840120,-1006.544829,0.00022789,2]
[316079012,1709347840129,-620.21734553,0.00022961,2]
[316079014,1709347840138,-500.0,0.00022998,2]
[316079016,1709347840147,-449.92856865,0.00022998,2]
[316079018,1709347840156,-500.0,0.00022998,2]
[316079020,1709347840166,-500.0,0.00022998,2]
[316079022,1709347840175,-1554.9,0.00022998,2]
[316079024,1709347840185,-714.48,0.00022998,2]
[316079026,1709347840194,-600.96,0.00022998,2]
[316079028,1709347840203,-578.64,0.00022998,2]
[316079030,1709347840213,-541.92,0.00022998,2]
[316079032,1709347840223,-1665.65,0.00022998,2]
[316079034,1709347840232,-525.94,0.00022998,2]
[316079036,1709347840241,-782.7,0.00022998,2]
[316079038,1709347840251,-500.0,0.00022999,2]
[316079040,1709347840262,-500.0,0.00022999,2]
[316079042,1709347840271,-500.0,0.00022999,2]
[316079044,1709347840281,-500.0,0.00022999,2]
[316079047,1709347840290,-541.92,0.00022999,2]
[316079049,1709347840300,-5914.33,0.00022999,2]
[316079051,1709347840309,-5914.33,0.00022999,2]
[316079053,1709347840318,-280.43,0.00023,7]
[316079055,1709347840328,-2792.57192339,0.00023,2]
[316079057,1709347840337,-445.13919078,0.00023039,2]
[316079059,1709347840346,-5914.33,0.00023039,2]
[316079061,1709347840355,-1006.544829,0.0002307,2]
[316079063,1709347840364,-503.272415,0.0002307,2]
[316079065,1709347840373,-1006.544829,0.0002307,2]
[316079067,1709347840382,-306.0,0.00023178,2]
[316079069,1709347840391,-200.7312975,0.00023178,2]
[316079071,1709347840401,-500.0,0.00023201,2]
[316079073,1709347840410,-500.0,0.00023201,2]
[316079076,1709347840420,-541.92,0.00023201,2]
[316079078,1709347840429,-500.0,0.00023349,2]
[316079088,1709347840513,-368.07083924,0.00023349,2]
[316079090,1709347840522,-438.93212905,0.00023349,2]
[316079092,1709347840532,-500.0,0.00023349,2]
[316079094,1709347840541,-1006.544829,0.00023351,2]
[316079096,1709347840550,-503.272415,0.00023351,2]
[316079098,1709347840559,-1006.544829,0.00023351,2]
[316079100,1709347840568,-524.77947103,0.00023413,2]
[316079102,1709347840577,-344.55827319,0.00023413,2]
[316079104,1709347840586,-500.0,0.00023413,2]
[316079106,1709347840595,-500.0,0.00023413,2]
[316079108,1709347840604,-500.0,0.00023413,2]
[316079110,1709347840613,-500.0,0.00023413,2]
[316079112,1709347840622,-204.4532614,0.00023413,2]
[316079114,1709347840631,-500.0,0.00023413,2]
[316079116,1709347840640,-500.0,0.00023413,2]
[316079118,1709347840649,-500.0,0.00023413,2]
[316079120,1709347840658,-500.0,0.00023413,2]
[316079122,1709347840667,-162.39724044,0.00023413,2]
[316079124,1709347840677,-500.0,0.00023413,2]
[316079126,1709347840686,-500.0,0.00023413,2]
[316079128,1709347840695,-500.0,0.00023413,2]
[316079130,1709347840704,-500.0,0.00023413,2]
[316079132,1709347840713,-500.0,0.00023413,2]
[316079134,1709347840722,-500.0,0.00023413,2]
[316079136,1709347840732,-500.0,0.00023413,2]
[316079138,1709347840741,-500.0,0.00023413,2]
[316079140,1709347840750,-500.0,0.00023413,2]
[316079142,1709347840760,-500.0,0.00023413,2]
[316079144,1709347840769,-500.0,0.00023413,2]
[316079146,1709347840779,-500.0,0.00023413,2]
[316079148,1709347840788,-500.0,0.00023413,2]
[316079150,1709347840797,-294.05863459,0.00023413,2]
[316079152,1709347840806,-500.0,0.00023413,2]
[316079154,1709347840815,-500.0,0.00023413,2]
[316079156,1709347840823,-500.0,0.00023413,2]
[316079158,1709347840832,-500.0,0.00023413,2]
[316079160,1709347840841,-500.0,0.00023413,2]
[316079162,1709347840851,-500.0,0.00023413,2]
[316079164,1709347840861,-500.0,0.00023413,2]
[316079166,1709347840870,-500.0,0.00023413,2]
[316079168,1709347840882,-500.0,0.00023413,2]
[316079170,1709347840891,-500.0,0.00023413,2]
[316079172,1709347840900,-500.0,0.00023413,2]
[316079174,1709347840909,-500.0,0.00023413,2]
[316079176,1709347840918,-500.0,0.00023413,2]
[316079178,1709347840927,-500.0,0.00023413,2]
[316079180,1709347840937,-500.0,0.00023413,2]
[316079182,1709347840946,-500.0,0.00023413,2]
[316079184,1709347840958,-500.0,0.00023413,2]
[316079186,1709347840967,-450.0,0.00023413,2]
[316079188,1709347840976,-500.0,0.00023413,2]
[316079190,1709347840985,-500.0,0.00023413,2]
[316079192,1709347840994,-500.0,0.00023413,2]
[316079194,1709347841003,-500.0,0.00023413,2]
[316079196,1709347841013,-500.0,0.00023413,2]
[316079198,1709347841022,-500.0,0.00023413,2]
[316079200,1709347841032,-500.0,0.00023413,2]
[316079201,1709347841041,-500.0,0.00023413,2]
[316079203,1709347841051,-500.0,0.00023413,2]
[316079205,1709347841060,-500.0,0.00023413,2]
[316079207,1709347841070,-500.0,0.00023413,2]
[316079209,1709347841079,-500.0,0.00023413,2]
[316079211,1709347841089,-409.21127352,0.00023413,2]